Workbook

Sheet Operations
A1: Original Submission: 6/30/2014
A3: Fares | B3: Fixed Route | C3: Paratransit
A4: Passenger Fare Collected ($) | B4: $1,240.84 | C4: $416.00
A5: Number of Regular Fares | B5: 1033 | C5: 310
A6: Number of Ticket | B6: 206 | C6: 99
A7: Number of Half Fare | B7: 393
A8: Number of Free | B8: 98
A9: Number of PCAs | C9: 0
A10: Service Days | B10: 22 | C10: 22
A12: Trips | B12: Fixed Route | C12: Paratransit
A13: One-way Trips | B13: 2123 | C13: 310
A14: Declined Trips | C14: 0
A15: Missed Trips | C15: 0
A16: Late Trips | C16: 0
A17: Date of Trip | C17: Paratransit' tab
A18: Trip Origin Address | C18: Paratransit' tab
A19: Trip Origin Zip Code | C19: Paratransit' tab
A20: Trip Destination Address | C20: Paratransit' tab
A21: Trip Destination Zip Code | C21: Paratransit' tab
A22: Trip Purpose | C22: Paratransit' tab
A23: Trip Distance | C23: Paratransit' tab
A26: Miles and Hours of Service | B26: Fixed Route | C26: Paratransit
A27: Vehicles Operated in Maximum Service | B27: 2 | C27: 2
A28: Scheduled Revenue Hours | B28: 488.72 | C28: 217.92
A29: Actual Vehicle Hours | B29: 531.33 | C29: 235.45
A30: Actual Revenue Hours | B30: 488.72 | C30: 224.77
A31: Actual Vehicle Miles | B31: 6010 | C31: 1745
A32: Actual Revenue Miles | B32: 5557 | C32: 1505
A35: Safety and Customer Service | B35: Fixed Route | C35: Paratransit
A36: Number of Reportable Incidents | B36: 0 | C36: 0
A37: Number of Injuries | B37: 0 | C37: 0
A38: Number of Fatalaties | B38: 0 | C38: 0
A39: Number of Complaints | B39: 0 | C39: 0
A42: Vehicle Maintenance | B42: Fixed Route | C42: Paratransit
A43: Transit Vehicle Breakdowns | B43: 1 | C43: ='Maint. 1473'!C2+'Maint. 1474'!C2+'Maint. 1475'!C2+'Maint. 1476'!C2+'Maint. 1603'!C2+'Maint. 1604'!C2 -> 0
A44: Unit Number | B44: 1475 | C44: 1603 -1604 (2)
A45: Odometer Reading | B45: See sheets | C45: See sheets
A46: Date Out of Service | B46: See sheets | C46: See sheets
A47: Date Return to Service | B47: See sheets | C47: See sheets
A48: Description of Problem | B48: See sheets | C48: See sheets
A49: Vehicle PM Scheduled | B49: See sheets | C49: See sheets
A50: Vehicle PM Performed On-Time | B50: See sheets | C50: See sheets
A53: Service Performance | B53: Fixed Route | C53: Paratransit
A54: Average Trips per Day | B54: =B13/B10 -> 96.500 | C54: =C13/C10 -> 14.091
A55: Average Trips per Revenue Hour | B55: =B13/B30 -> 4.344 | C55: =C13/C30 -> 1.379
A56: Average Trips per Revenue Mile | B56: =B13/B32 -> 0.382 | C56: =C13/C32 -> 0.206

Sheet Sheet1

Sheet Paratransit
A1: Trip Code | B1: Client Name | C1: Pickup Time | D1: Delivery Time | E1: Pickup Address | F1: Pickup Zip | G1: Delivery Address | H1: Delivery Zip | I1: Purpose | J1: Trip Miles | K1: Sch. Pickup | L1: Sch. Dropoff | M1: Difference | N1: Daily Hrs | O1: Converted
A2: Delivered | B2: Kessler, Vickie | C2: 2017-06-01T06:58:00 | D2: 2017-06-01T07:10:00 | E2: Kessler, Vickie 1200 Pleasant Dr | F2: 77301 | G2: Walmart (1407 N Loop 336) | H2: 77301 | I2: Shopping | J2: 4 | K2: 07:15:00 | L2: =K2+J2/24/12 -> 07:35:00 | M2: =L2-K2 -> 00:20:00
A3: Delivered | B3: Cremeans, Stacy | C3: 2017-06-01T07:22:00 | D3: 2017-06-01T07:27:00 | E3: Cremeans, Stacy, 901 Wilson Rd. Apt 1013 | F3: 77301 | G3: Lowes (1920 Westview Rd | H3: 770304 | I3: Work | J3: 1 | K3: 07:30:00 | L3: 07:35:00 | M3: 00:05:00
A4: Delivered | B4: Wallace, Charles | C4: 2017-06-01T07:36:00 | D4: 2017-06-01T07:43:00 | E4: Wallace, Charles (2213 N Frazier #1301) | F4: 77301 | G4: Kroger North Loop 336 (2222 I-45 North) | H4: 77304 | I4: Work | J4: 1 | K4: 08:00:00 | L4: 08:05:00 | M4: 00:05:00
A5: Delivered | B5: Kessler, Vickie | C5: 2017-06-01T08:15:00 | D5: 2017-06-01T08:18:00 | E5: Walmart (1407 N Loop 336) | F5: 77301 | G5: 99 cent Store 1420 Loop 336 | H5: 77304 | I5: Shopping | J5: 1 | K5: 09:00:00 | L5: 09:05:00 | M5: 00:05:00
A6: Delivered | B6: Adams, Michael Sidney | C6: 2017-06-01T08:30:00 | D6: 2017-06-01T08:36:00 | E6: Adams, Michael Sidney (101 S Woodsway West) | F6: 77301 | G6: DaVitas Dialysis (233 I-45 North) | H6: 77304 | I6: Dialysis | J6: 2 | K6: 08:30:00 | L6: 08:40:00 | M6: 00:10:00
A7: Delivered | B7: Schiller, Beverly | C7: 2017-06-01T08:48:00 | D7: 2017-06-01T09:00:00 | E7: Schiller, Beverly (1300 Silverdale Dr. #504) | F7: 77301 | G7: Kroger (220 S. Loop 336 West) | H7: 77301 | I7: Shopping | J7: 6 | K7: 08:30:00 | L7: 09:00:00 | M7: 00:30:00
A8: Delivered | B8: Kessler, Vickie | C8: 2017-06-01T09:04:00 | D8: 2017-06-01T09:11:00 | E8: 99 cent Store 1420 Loop 336 | F8: 77304 | G8: C & S Tabacco (1904 N Frazier) | H8: 77301 | I8: Shopping | J8: 2 | K8: 10:00:00 | L8: 10:10:00 | M8: 00:10:00
A9: Delivered | B9: Kessler, Vickie | C9: 2017-06-01T09:14:00 | D9: 2017-06-01T09:24:00 | E9: C & S Tabacco (1904 N Frazier) | F9: 77301 | G9: Kessler, Vickie 1200 Pleasant Dr | H9: 77301 | I9: home | J9: 2 | K9: 11:00:00 | L9: 11:10:00 | M9: 00:10:00
A10: Delivered | B10: Taboada, Rutila | C10: 2017-06-01T09:32:00 | D10: 2017-06-01T09:39:00 | E10: Taboada, Rutila (618 Mill Ave) | F10: 77301 | G10: DaVitas Dialysis (233 I-45 North) | H10: 77304 | I10: Dialysis | J10: 1 | K10: 09:30:00 | L10: 09:35:00 | M10: 00:05:00
A11: Delivered | B11: Ware, Willie Jean | C11: 2017-06-01T09:50:00 | D11: 2017-06-01T09:54:00 | E11: Willie Jean Ware (507 Urquhart St) | F11: 77301 | G11: DaVitas Dialysis (233 I-45 North) | H11: 77304 | I11: Dialysis | J11: 1 | K11: 09:45:00 | L11: 09:50:00 | M11: 00:05:00
A12: Delivered | B12: Brown, Betty | C12: 2017-06-01T10:08:00 | D12: 2017-06-01T10:16:00 | E12: Brown, Betty 1300 Silverdale Dr. Apt. 3001 | F12: 77301 | G12: Kroger (220 S. Loop 336 West) | H12: 77304 | I12: Shopping | J12: 4 | K12: 10:00:00 | L12: 10:20:00 | M12: 00:20:00
A13: Delivered | B13: Brown, Betty | C13: 2017-06-01T10:40:00 | D13: 2017-06-01T10:48:00 | E13: Kroger (220 S. Loop 336 West) | F13: 77304 | G13: Cash Advance (440 W. Davis) | H13: 77301 | I13: Shopping | J13: 3 | K13: 11:00:00 | L13: 11:15:00 | M13: 00:15:00
A14: Delivered | B14: Brown, Betty | C14: 2017-06-01T10:50:00 | D14: 2017-06-01T11:52:00 | E14: Cash Advance (440 W. Davis) | F14: 77301 | G14: Brown, Betty 1300 Silverdale Dr. Apt. 3001 | H14: 77301 | I14: home | J14: 3 | K14: 12:00:00 | L14: 12:15:00 | M14: 00:15:00
A15: Delivered | B15: Adams, Michael Sidney | C15: 2017-06-01T12:49:00 | D15: 2017-06-01T12:58:00 | E15: DaVitas Dialysis (233 I-45 North) | F15: 77304 | G15: Adams, Michael Sidney (101 S Woodsway West) | H15: 77301 | I15: home | J15: 2 | K15: 12:45:00 | L15: 12:55:00 | M15: 00:10:00
A16: Delivered | B16: Ware, Willie Jean | C16: 2017-06-01T13:55:00 | D16: 2017-06-01T14:01:00 | E16: DaVitas Dialysis (233 I-45 North) | F16: 77304 | G16: Willie Jean Ware (507 Urquhart St) | H16: 77301 | I16: home | J16: 1 | K16: 14:10:00 | L16: 14:15:00 | M16: 00:05:00
A17: Delivered | B17: Taboada, Rutila | C17: 2017-06-01T14:37:00 | D17: 2017-06-01T02:47:00 | E17: DaVitas Dialysis (233 I-45 North) | F17: 77304 | G17: Taboada, Rutila (618 Mill Ave) | H17: 77301 | I17: home | J17: 1 | K17: 14:00:00 | L17: 14:05:00 | M17: 00:05:00 | N17: =L17-K2 -> 06:50:00 | O17: =N17*24 -> 6.83
A18: Delivered | B18: Cremeans, Stacy | C18: 2017-06-02T07:20:00 | D18: 2017-06-02T07:25:00 | E18: Cremeans, Stacy, 901 Wilson Rd. Apt 1013 | F18: 77301 | G18: Lowes (1920 Westview Rd | H18: 77304 | I18: Work | J18: 8 | K18: 07:30:00 | L18: 08:10:00 | M18: 00:40:00
A19: Delivered | B19: Hopcus, Lilly | C19: 2017-06-02T07:46:00 | D19: 2017-06-02T07:55:00 | E19: Hopcus, Lilly 200 Camelot #300 | F19: 77304 | G19: DaVitas Dialysis (233 I-45 North) | H19: 77304 | I19: Dialysis | J19: 1 | K19: 08:00:00 | L19: 08:05:00 | M19: 00:05:00
A20: Delivered | B20: Sumner, Susan | C20: 2017-06-02T10:18:00 | D20: 2017-06-02T10:37:00 | E20: Sumner, Susan 1000 S. 1St st | F20: 77301 | G20: Kroger North Loop 336 (2222 I-45 North) | H20: 77304 | I20: Shopping | J20: 2 | K20: 10:00:00 | L20: 10:10:00 | M20: 00:10:00
A21: Delivered | B21: Brown, Betty | C21: 2017-06-02T10:23:00 | D21: 2017-06-02T10:37:00 | E21: Brown, Betty 1300 Silverdale Dr. Apt. 3001 | F21: 77301 | G21: Kroger (220 S. Loop 336 West) | H21: 77304 | I21: Shopping | J21: 4 | K21: 10:00:00 | L21: 10:20:00 | M21: 00:20:00
A22: Delivered | B22: Jacobo, Manuel | C22: 2017-06-02T10:23:00 | D22: 2017-06-02T10:37:00 | E22: DaVitas Dialysis (233 I-45 North) | F22: 77304 | G22: Jacobo, Manuel 110 Eloies | H22: 77301 | I22: Dialysis | J22: 2 | K22: 10:00:00 | L22: 10:10:00 | M22: 00:10:00
A23: Delivered | B23: Taylor Jr. Milton | C23: 2017-06-02T10:32:00 | D23: 2017-06-02T10:49:00 | E23: Taylor Jr, Milton 500 Hickerson #903 | F23: 77301 | G23: Sams Club (2000 Westview Blvd.) | H23: 77301 | I23: Shopping | J23: 4 | K23: 10:00:00 | L23: 10:20:00 | M23: 00:20:00
A24: Delivered | B24: Brown, Betty | C24: 2017-06-02T11:24:00 | D24: 2017-06-02T11:31:00 | E24: Kroger North Loop 336 (2222 I-45 North) | F24: 77304 | G24: Cash Advance (440 W. Davis) | H24: 77301 | I24: Personal | J24: 4 | K24: 11:00:00 | L24: 11:20:00 | M24: 00:20:00
A25: Delivered | B25: Brown, Betty | C25: 2017-06-02T11:39:00 | D25: 2017-06-02T11:53:00 | E25: Cash Advance (440 W. Davis) | F25: 77301 | G25: Brown, Betty 1300 Silverdale Dr. Apt. 3001 | H25: 77301 | I25: home | J25: 3 | K25: 11:30:00 | L25: 11:45:00 | M25: 00:15:00
A26: Delivered | B26: Sumner, Susan | C26: 2017-06-02T12:05:00 | D26: 2017-06-02T12:19:00 | E26: Kroger North Loop 336 (2222 I-45 North) | F26: 77304 | G26: Sumner, Susan 1000 S. 1St st | H26: 77301 | I26: home | J26: 3 | K26: 11:00:00 | L26: 11:15:00 | M26: 00:15:00
A27: Delivered | B27: Taylor Jr. Milton | C27: 2017-06-02T12:10:00 | D27: 2017-06-02T12:19:00 | E27: Walmart (1407 N Loop 336) | F27: 77301 | G27: Churchs Chicken 1203 N Frazier | H27: 77301 | I27: Shopping | J27: 2 | K27: 11:30:00 | L27: 11:40:00 | M27: 00:10:00
A28: Delivered | B28: Hopcus, Lilly | C28: 2017-06-02T12:28:00 | D28: 2017-06-02T12:36:00 | E28: DaVitas Dialysis (233 I-45 North) | F28: 77304 | G28: Hopcus, Lilly 200 Camelot #300 | H28: 77304 | I28: home | J28: 3 | K28: 12:30:00 | L28: 12:45:00 | M28: 00:15:00
A29: Delivered | B29: Taylor Jr. Milton | C29: 2017-06-02T12:39:00 | D29: 2017-06-02T12:47:00 | E29: Churchs Chicken 1203 N Frazier | F29: 77301 | G29: Taylor Jr, Milton 500 Hickerson #903 | H29: 77301 | I29: home | J29: 2 | K29: 12:00:00 | L29: 12:10:00 | M29: 00:10:00
A30: Delivered | B30: Manni, Willie | C30: 2017-06-02T12:51:00 | D30: 2017-06-02T13:03:00 | E30: Young, Minnie Marie (2455N frazier Apt 934 | F30: 77301 | G30: River Park Dialysis 2010 s Loop | H30: 77301 | I30: Dialysis | J30: 3 | K30: 12:45:00 | L30: 13:00:00 | M30: 00:15:00
A31: Delivered | B31: Phillips, Sandra | C31: 2017-06-02T13:17:00 | D31: 2017-06-02T13:28:00 | E31: Phillips, Sandra 2205 N Frazier #43 | F31: 77301 | G31: Goodwill Stores (1102 W. Dallas) | H31: 77301 | I31: Work | J31: 3 | K31: 13:15:00 | L31: 13:30:00 | M31: 00:15:00
A32: Delivered | B32: Phillips, Sandra | C32: 2017-06-02T17:40:00 | D32: 2017-06-02T17:57:00 | E32: Goodwill Stores (1102 W. Dallas) | F32: 77301 | G32: Phillips, Sandra 2205 N Frazier #43 | H32: 77301 | I32: home | J32: 2 | K32: 17:30:00 | L32: 17:40:00 | M32: 00:10:00
A33: Delivered | B33: Manni, Willie | C33: 2017-06-02T18:12:00 | D33: 2017-06-02T18:26:00 | E33: River Park Dialysis 2010 s Loop | F33: 77301 | G33: Manni, Willie ( 404 Ave K ) | H33: 77301 | I33: home | J33: 3 | K33: 18:00:00 | L33: 18:15:00 | M33: 00:15:00 | N33: =L33-K18 -> 10:45:00 | O33: =N33*24 -> 10.75
A34: Delivered | B34: Cremeans, Stacy | C34: 2017-06-05T07:19:00 | D34: 2017-06-05T07:24:00 | E34: Cremeans, Stacy, 901 Wilson Rd. Apt 1013 | F34: 77301 | G34: Lowes (1920 Westview Rd | H34: 77304 | I34: Work | J34: 1 | K34: 07:30:00 | L34: =K34+J34/24/12 -> 07:35:00 | M34: =L34-K34 -> 00:05:00 | O34: 0.00
A35: Delivered | B35: Hopcus, Lilly | C35: 2017-06-05T07:40:00 | D35: 2017-06-05T07:44:00 | E35: Hopcus, Lilly 200 Camelot #300 | F35: 77304 | G35: DaVitas Dialysis (233 I-45 North) | H35: 77304 | I35: Dialysis | J35: 1 | K35: 08:00:00 | L35: 08:05:00 | M35: 00:05:00 | O35: 0.00
A36: Delivered | B36: Young, Minnie Marie | C36: 2017-06-05T08:25:00 | D36: 2017-06-05T08:36:00 | E36: Young, Minnie Marie (2455N frazier Apt 934 | F36: 77301 | G36: Doctor (3000 W. Davis) | H36: 77301 | I36: Medical | J36: 4 | K36: 08:15:00 | L36: 08:35:00 | M36: 00:20:00 | O36: 0.00
A37: Delivered | B37: Phillips, Sandra | C37: 2017-06-05T08:48:00 | D37: 2017-06-05T09:02:00 | E37: Phillips, Sandra 2205 N Frazier #43 | F37: 77301 | G37: Avery Eye Clinic 400 S Loop W) | H37: 77304 | I37: Medical | J37: 5 | K37: 09:00:00 | L37: 09:25:00 | M37: 00:25:00 | O37: 0.00
A38: Delivered | B38: Jacobo, Manuel | C38: 2017-06-05T09:37:00 | D38: 2017-06-05T09:48:00 | E38: DaVitas Dialysis (233 I-45 North) | F38: 77304 | G38: Jacobo, Manuel 110 Eloies | H38: 77301 | I38: home | J38: 2 | K38: 10:00:00 | L38: 10:10:00 | M38: 00:10:00 | O38: 0.00
A39: Delivered | B39: Smith, Alice J. | C39: 2017-06-05T09:58:00 | D39: 2017-06-05T10:09:00 | E39: Smith, Alice (617 Ave. I) | F39: 77301 | G39: smart financial Credit Union (3201 W Davis st) | H39: 77301 | I39: Personal | J39: 3 | K39: 10:15:00 | L39: 10:30:00 | M39: 00:15:00 | O39: 0.00
A40: Delivered | B40: Young, Minnie Marie | C40: 2017-06-05T10:22:00 | D40: 2017-06-05T10:34:00 | E40: Doctor (3000 W. Davis) | F40: 77301 | G40: Young, Minnie Marie (2455N frazier Apt 934 | H40: 77301 | I40: home | J40: 3 | K40: 10:00:00 | L40: 10:15:00 | M40: 00:15:00 | O40: 0.00
A41: Delivered | B41: Smith, Alice J. | C41: 2017-06-05T10:44:00 | D41: 2017-06-05T10:46:00 | E41: smart financial Credit Union (3201 W Davis st) | F41: 77301 | G41: Simpson & Dabney App.(202 N Frazier | H41: 77301 | I41: Personal | J41: 1 | K41: 11:00:00 | L41: 11:05:00 | M41: 00:05:00 | O41: 0.00
A42: Delivered | B42: Smith, Alice J. | C42: 2017-06-05T10:47:00 | D42: 2017-06-05T10:54:00 | E42: Simpson & Dabney App.(202 N Frazier | F42: 77301 | G42: Smith, Alice (617 Ave. I) | H42: 77301 | I42: home | J42: 2 | K42: 12:00:00 | L42: 12:10:00 | M42: 00:10:00 | O42: 0.00
A43: Delivered | B43: Phillips, Sandra | C43: 2017-06-05T11:44:00 | D43: 2017-06-05T12:00:00 | E43: Avery Eye Clinic 400 S Loop W) | F43: 77304 | G43: Phillips, Sandra 2205 N Frazier #43 | H43: 77301 | I43: home | J43: 5 | K43: 11:00:00 | L43: 11:25:00 | M43: 00:25:00 | O43: =N43*24 -> 0.00
A44: Delivered | B44: Hopcus, Lilly | C44: 2017-06-05T12:28:00 | D44: 2017-06-05T12:38:00 | E44: DaVitas Dialysis (233 I-45 North) | F44: 77304 | G44: Hopcus, Lilly 200 Camelot #300 | H44: 77304 | I44: home | J44: 2 | K44: 12:30:00 | L44: 12:40:00 | M44: 00:10:00 | O44: 0.00
A45: Delivered | B45: Manni, Willie | C45: 2017-06-05T12:57:00 | D45: 2017-06-05T13:17:00 | E45: Manni, Willie ( 404 Ave K ) | F45: 77301 | G45: River Park Dialysis 2010 s Loop | H45: 77301 | I45: Dialysis | J45: 3 | K45: 12:45:00 | L45: 13:00:00 | M45: 00:15:00 | O45: 0.00
A46: Delivered | B46: Hill, Lillie | C46: 2017-06-05T13:06:00 | D46: 2017-06-05T13:17:00 | E46: Lillie Hill (500 Hickerson #1004) | F46: 77301 | G46: River Park Dialysis 2010 s Loop | H46: 77301 | I46: Dialysis | J46: 3 | K46: 12:45:00 | L46: 13:00:00 | M46: 00:15:00 | O46: 0.00
A47: Delivered | B47: phillips, Sandra | C47: 2017-06-05T13:15:00 | D47: 2017-06-05T13:27:00 | E47: Phillips, Sandra 2205 N Frazier #43 | F47: 77301 | G47: Goodwill Stores (1102 W. Dallas) | H47: 77301 | I47: Work | J47: 2 | K47: 13:15:00 | L47: 13:25:00 | M47: 00:10:00 | O47: 0.00
A48: Delivered | B48: Cremeans, Stacy | C48: 2017-06-05T17:07:00 | D48: 2017-06-05T17:13:00 | E48: Lowes (1920 Westview Rd | F48: 77304 | G48: Cremeans, Stacy, 901 Wilson Rd. Apt 1013 | H48: 77301 | I48: home | J48: 1 | K48: 17:00:00 | L48: 17:05:00 | M48: 00:05:00 | O48: 0.00
A49: Delivered | B49: Phillips, Sandra | C49: 2017-06-05T17:32:00 | D49: 2017-06-05T17:48:00 | E49: Goodwill Stores (1102 W. Dallas) | F49: 77301 | G49: Phillips, Sandra 2205 N Frazier #43 | H49: 77301 | I49: home | J49: 2 | K49: 17:30:00 | L49: 17:40:00 | M49: 00:10:00 | O49: 0.00
A50: Delivered | B50: Manni, Willie | C50: 2017-06-05T18:03:00 | D50: 2017-06-05T18:52:00 | E50: River Park Dialysis 2010 s Loop | F50: 77301 | G50: Manni, Willie ( 404 Ave K ) | H50: 77301 | I50: home | J50: 4 | K50: 18:00:00 | L50: 18:20:00 | M50: 00:20:00
A51: Delivered | B51: Hill, Lillie | C51: 2017-06-05T18:29:00 | D51: 2017-06-05T18:38:00 | E51: River Park Dialysis 2010 s Loop | F51: 77301 | G51: Lillie Hill (500 Hickerson #1004) | H51: 77301 | I51: home | J51: 2 | K51: 17:45:00 | L51: 17:55:00 | M51: 00:10:00 | N51: =L51-K34 -> 10:25:00 | O51: =N51*24 -> 10.42
A52: Delivered | B52: Kessler, Vickie | C52: 2017-06-06T07:00:00 | D52: 2017-06-06T07:13:00 | E52: Kessler, Vickie 1200 Pleasant Dr | F52: 77304 | G52: Walmart (1407 N Loop 336) | H52: 77301 | I52: Shopping | J52: 3 | K52: 07:15:00 | L52: 07:30:00 | M52: 00:15:00
A53: Delivered | B53: Cremeans, Stacy | C53: 2017-06-06T07:20:00 | D53: 2017-06-06T07:25:00 | E53: Cremeans, Stacy, 901 Wilson Rd. Apt 1013 | F53: 77301 | G53: Lowes (1920 Westview Rd | H53: 77304 | I53: Work | J53: 1 | K53: 07:30:00 | L53: 07:35:00 | M53: 00:05:00
A54: Delivered | B54: Wallace, Charles | C54: 2017-06-06T07:42:00 | D54: 2017-06-06T07:48:00 | E54: Wallace, Charles (2213 N Frazier #1301) | F54: 77301 | G54: Kroger North Loop 336 (2222 I-45 North) | H54: 77304 | I54: Work | J54: 1 | K54: 08:00:00 | L54: 08:05:00 | M54: 00:05:00
A55: Delivered | B55: Adams, Michael Sidney | C55: 2017-06-06T08:12:00 | D55: 2017-06-06T08:18:00 | E55: Adams, Michael Sidney (101 S Woodsway West) | F55: 77301 | G55: DaVitas Dialysis (233 I-45 North) | H55: 77304 | I55: Dialysis | J55: 2 | K55: 08:30:00 | L55: 08:40:00 | M55: 00:10:00
A56: Delivered | B56: Kessler, Vickie | C56: 2017-06-06T08:30:00 | D56: 2017-06-06T13:55:00 | E56: Walmart (1407 N Loop 336) | F56: 77301 | G56: Kroger North Loop 336 (2222 I-45 North) | H56: 77304 | I56: Shopping | J56: 1 | K56: 09:00:00 | L56: 09:05:00 | M56: 00:05:00
A57: Delivered | B57: Kessler, Vickie | C57: 2017-06-06T09:14:00 | D57: 2017-06-06T09:27:00 | E57: Kroger North Loop 336 (2222 I-45 North) | F57: 77304 | G57: Kessler, Vickie 1200 Pleasant Dr | H57: 77304 | I57: home | J57: 4 | K57: 10:30:00 | L57: 10:50:00 | M57: 00:20:00
A58: Delivered | B58: Taboada, Rutila | C58: 2017-06-06T09:35:00 | D58: 2017-06-06T09:41:00 | E58: Taboada, Rutila (618 Mill Ave) | F58: 77301 | G58: DaVitas Dialysis (233 I-45 North) | H58: 77304 | I58: Dialysis | J58: 1 | K58: 09:30:00 | L58: 09:35:00 | M58: 00:05:00
A59: Delivered | B59: Ware, Willie Jean | C59: 2017-06-06T09:48:00 | D59: 2017-06-06T09:54:00 | E59: Willie Jean Ware (507 Urquhart St) | F59: 77301 | G59: DaVitas Dialysis (233 I-45 North) | H59: 77304 | I59: Dialysis | J59: 1 | K59: 09:45:00 | L59: 09:50:00 | M59: 00:05:00
A60: Delivered | B60: Adams, Michael Sidney | C60: 2017-06-06T13:22:00 | D60: 2017-06-06T13:30:00 | E60: DaVitas Dialysis (233 I-45 North) | F60: 77304 | G60: Adams, Michael Sidney (101 S Woodsway West) | H60: 77301 | I60: home | J60: 2 | K60: 12:45:00 | L60: 12:55:00 | M60: 00:10:00
A61: Delivered | B61: Ware, Willie Jean | C61: 2017-06-06T14:09:00 | D61: 2017-06-06T14:17:00 | E61: DaVitas Dialysis (233 I-45 North) | F61: 77304 | G61: Willie Jean Ware (507 Urquhart St) | H61: 77301 | I61: home | J61: 1 | K61: 14:10:00 | L61: 14:15:00 | M61: 00:05:00
A62: Delivered | B62: Taboada, Rutila | C62: 2017-06-06T14:34:00 | D62: 2017-06-06T14:43:00 | E62: DaVitas Dialysis (233 I-45 North) | F62: 77304 | G62: Adams, Michael Sidney (101 S Woodsway West) | H62: 77301 | I62: home | J62: 2 | K62: 14:00:00 | L62: 14:10:00 | M62: 00:10:00
A63: Delivered | B63: Wallace, Charles | C63: 2017-06-06T15:16:00 | D63: 2017-06-06T15:22:00 | E63: Kroger North Loop 336 (2222 I-45 North) | F63: 77304 | G63: Wallace, Charles (2213 N Frazier #1301) | H63: 77301 | I63: home | J63: 1 | K63: 15:15:00 | L63: 15:20:00 | M63: 00:05:00
A64: Delivered | B64: Smith, Alice J. | C64: 2017-06-06T15:37:00 | D64: 2017-06-06T15:53:00 | E64: HEB (2108 N Frazier | F64: 77301 | G64: Smith, Alice (617 Ave. I) | H64: 77301 | I64: home | J64: 3 | K64: 15:30:00 | L64: 15:45:00 | M64: 00:15:00
A65: Delivered | B65: Cremeans, Stacy | C65: 2017-06-06T17:05:00 | D65: 2017-06-06T17:10:00 | E65: Lowes (1920 Westview Rd | F65: 77304 | G65: Cremeans, Stacy, 901 Wilson Rd. Apt 1013 | H65: 77301 | I65: home | J65: 1 | K65: 17:00:00 | L65: 17:05:00 | M65: 00:05:00 | N65: =L65-K52 -> 09:50:00 | O65: =N65*24 -> 9.83
A66: Delivered | B66: Brown, Betty | C66: 2017-06-07T07:19:00 | D66: 2017-06-07T07:28:00 | E66: Brown, Betty 1300 Silverdale Dr. Apt. 3001 | F66: 77301 | G66: Avery Eye Clinic 400 S Loop W) | H66: 77304 | I66: Medical | J66: 4 | K66: 07:30:00 | L66: =K66+J66/24/12 -> 07:50:00 | M66: =L66-K66 -> 00:20:00
A67: Delivered | B67: Cremeans, Stacy | C67: 2017-06-07T07:35:00 | D67: 2017-06-07T07:40:00 | E67: Cremeans, Stacy, 901 Wilson Rd. Apt 1013 | F67: 77301 | G67: Lowes (1920 Westview Rd | H67: 77304 | I67: Work | J67: 1 | K67: 07:30:00 | L67: 07:35:00 | M67: 00:05:00
A68: Delivered | B68: Hopcus, Lilly | C68: 2017-06-07T07:46:00 | D68: 2017-06-07T07:56:00 | E68: Hopcus, Lilly 200 Camelot #300 | F68: 77304 | G68: DaVitas Dialysis (233 I-45 North) | H68: 77304 | I68: Dialysis | J68: 1 | K68: 08:00:00 | L68: 08:05:00 | M68: 00:05:00
A69: Delivered | B69: Jacobo, Manuel | C69: 2017-06-07T09:37:00 | D69: 2017-06-07T09:51:00 | E69: DaVitas Dialysis (233 I-45 North) | F69: 77304 | G69: Jacobo, Manuel 110 Eloies | H69: 77301 | I69: home | J69: 2 | K69: 10:00:00 | L69: 10:10:00 | M69: 00:10:00
A70: Delivered | B70: Brown, Betty | C70: 2017-06-07T10:07:00 | D70: 2017-06-07T10:10:00 | E70: Avery Eye Clinic 400 S Loop W) | F70: 77304 | G70: 504 medical Center Blvd | H70: 77301 | I70: Medical | J70: 1 | K70: 09:00:00 | L70: 09:05:00 | M70: 00:05:00
A71: Delivered | B71: Brown, Betty | C71: 2017-06-07T10:35:00 | D71: 2017-06-07T10:41:00 | E71: 504 medical Center Blvd | F71: 77301 | G71: Kroger (220 S. Loop 336 West) | H71: 77304 | I71: Shopping | J71: 1 | K71: 11:00:00 | L71: 11:05:00 | M71: 00:05:00
A72: Delivered | B72: Brown, Betty | C72: 2017-06-07T11:25:00 | D72: 2017-06-07T11:39:00 | E72: Kroger (220 S. Loop 336 West) | F72: 77304 | G72: Brown, Betty 1300 Silverdale Dr. Apt. 3001 | H72: 77301 | I72: home | J72: 3 | K72: 12:00:00 | L72: 12:15:00 | M72: 00:15:00
A73: Delivered | B73: Hopcus, Lilly | C73: 2017-06-07T12:09:00 | D73: 2017-06-07T12:20:00 | E73: DaVitas Dialysis (233 I-45 North) | F73: 77304 | G73: Hopcus, Lilly 200 Camelot #300 | H73: 77304 | I73: home | J73: 2 | K73: 12:30:00 | L73: 12:40:00 | M73: 00:10:00
A74: Delivered | B74: Manni, Willie | C74: 2017-06-07T12:38:00 | D74: 2017-06-07T12:49:00 | E74: Manni, Willie ( 404 Ave K ) | F74: 77301 | G74: River Park Dialysis 2010 s Loop | H74: 77301 | I74: Dialysis | J74: 3 | K74: 12:45:00 | L74: 13:00:00 | M74: 00:15:00
A75: Delivered | B75: Hill, Lillie | C75: 2017-06-07T13:03:00 | D75: 2017-06-07T13:12:00 | E75: Lillie Hill (500 Hickerson #1004) | F75: 77301 | G75: River Park Dialysis 2010 s Loop | H75: 77301 | I75: Dialysis | J75: 3 | K75: 12:45:00 | L75: 13:00:00 | M75: 00:15:00
A76: Delivered | B76: Phillips, Sandra | C76: 2017-06-07T13:14:00 | D76: 2017-06-07T13:24:00 | E76: Phillips, Sandra 2205 N Frazier #43 | F76: 77301 | G76: Goodwill Stores (1102 W. Dallas) | H76: 77301 | I76: Work | J76: 2 | K76: 13:15:00 | L76: 13:25:00 | M76: 00:10:00
A77: Delivered | B77: Martin, Joyce | C77: 2017-06-07T13:37:00 | D77: 2017-06-07T13:47:00 | E77: Martin, Joyce (1101 S. 7th st #106 | F77: 77301 | G77: 100 medical Center Blvd | H77: 77301 | I77: Medical | J77: 2 | K77: 13:30:00 | L77: 13:40:00 | M77: 00:10:00
A78: Delivered | B78: Martin, Joyce | C78: 2017-06-07T15:04:00 | D78: 2017-06-07T15:18:00 | E78: 100 Medical Center Blvd | F78: 77301 | G78: Churchs Chicken 1203 N Frazier | H78: 77301 | I78: Shopping | J78: 4 | K78: 15:00:00 | L78: 15:20:00 | M78: 00:20:00
A79: Delivered | B79: Martin, Joyce | C79: 2017-06-07T15:28:00 | D79: 2017-06-07T15:40:00 | E79: Churchs Chicken 1203 N Frazier | F79: 77301 | G79: 100 Medical Center Blvd | H79: 77301 | I79: home | J79: 3 | K79: 15:30:00 | L79: 15:45:00 | M79: 00:15:00
A80: Delivered | B80: Cremeans, Stacy | C80: 2017-06-07T17:06:00 | D80: 2017-06-07T17:10:00 | E80: Lowes (1920 Westview Rd | F80: 77304 | G80: Cremeans, Stacy, 901 Wilson Rd. Apt 1013 | H80: 77301 | I80: home | J80: 1 | K80: 17:00:00 | L80: 17:05:00 | M80: 00:05:00
A81: Delivered | B81: Phillips, Sandra | C81: 2017-06-07T17:30:00 | D81: 2017-06-07T17:41:00 | E81: Goodwill Stores (1102 W. Dallas) | F81: 77301 | G81: Phillips, Sandra 2205 N Frazier #43 | H81: 77301 | I81: home | J81: 2 | K81: 17:30:00 | L81: 17:40:00 | M81: 00:10:00
A82: Delivered | B82: Hill, Lillie | C82: 2017-06-07T18:00:00 | D82: 2017-06-07T18:15:00 | E82: River Park Dialysis 2010 s Loop | F82: 77301 | G82: Lillie Hill (500 Hickerson #1004) | H82: 77301 | I82: home | J82: 2 | K82: 17:45:00 | L82: 17:55:00 | M82: 00:10:00
A83: Delivered | B83: Manni, Willie | C83: 2017-06-07T18:00:00 | D83: 2017-06-07T18:20:00 | E83: River Park Dialysis 2010 s Loop | F83: 77301 | G83: Manni, Willie ( 404 Ave K ) | H83: 77301 | I83: home | J83: 4 | K83: 18:00:00 | L83: 18:20:00 | M83: 00:20:00 | N83: =L83-K66 -> 10:50:00 | O83: =N83*24 -> 10.83
A84: Delivered | B84: Cremeans, Stacy | C84: 2017-06-08T07:19:00 | D84: 2017-06-08T07:25:00 | E84: Cremeans, Stacy, 901 Wilson Rd. Apt 1013 | F84: 77301 | G84: Lowes (1920 Westview Rd | H84: 77304 | I84: Work | J84: 1 | K84: 07:30:00 | L84: 07:35:00 | M84: 00:05:00 | O84: 0.00
A85: Delivered | B85: Adams, Michael Sidney | C85: 2017-06-08T08:20:00 | D85: 2017-06-08T08:27:00 | E85: Adams, Michael Sidney (101 S Woodsway West) | F85: 77301 | G85: DaVitas Dialysis (233 I-45 North) | H85: 77304 | I85: Dialysis | J85: 2 | K85: 08:30:00 | L85: 08:40:00 | M85: 00:10:00 | O85: 0.00
A86: Delivered | B86: Ware, Willie Jean | C86: 2017-06-08T09:39:00 | D86: 2017-06-08T09:46:00 | E86: Willie Jean Ware (507 Urquhart St) | F86: 77301 | G86: DaVitas Dialysis (233 I-45 North) | H86: 77304 | I86: Dialysis | J86: 1 | K86: 09:45:00 | L86: 09:50:00 | M86: 00:05:00 | O86: 0.00
A87: Delivered | B87: Taboada, Rutila | C87: 2017-06-08T09:55:00 | D87: 2017-06-08T10:04:00 | E87: Taboada, Rutila (618 Mill Ave) | F87: 77301 | G87: DaVitas Dialysis (233 I-45 North) | H87: 77304 | I87: Dialysis | J87: 1 | K87: 10:00:00 | L87: 10:05:00 | M87: 00:05:00 | O87: 0.00
A88: Delivered | B88: Adams, Michael Sidney | C88: 2017-06-08T13:10:00 | D88: 2017-06-08T13:20:00 | E88: DaVitas Dialysis (233 I-45 North) | F88: 77304 | G88: Adams, Michael Sidney (101 S Woodsway West) | H88: 77301 | I88: home | J88: 2 | K88: 12:45:00 | L88: 12:55:00 | M88: 00:10:00 | O88: 0.00
A89: Delivered | B89: Arujo Sharon | C89: 2017-06-08T13:37:00 | D89: 2017-06-08T13:47:00 | E89: Arujo Sharon (512 Jewel St ) | F89: 77301 | G89: 600 Riverpoint Dr. | H89: 77304 | I89: Personal | J89: 3 | K89: 13:45:00 | L89: 14:00:00 | M89: 00:15:00 | O89: 0.00
A90: Delivered | B90: Ware, Willie Jean | C90: 2017-06-08T14:01:00 | D90: 2017-06-08T14:05:00 | E90: DaVitas Dialysis (233 I-45 North) | F90: 77304 | G90: Willie Jean Ware (507 Urquhart St) | H90: 77301 | I90: home | J90: 1 | K90: 14:10:00 | L90: 14:15:00 | M90: 00:05:00 | O90: 0.00
A91: Delivered | B91: Taboada, Rutila | C91: 2017-06-08T14:34:00 | D91: 2017-06-08T14:42:00 | E91: DaVitas Dialysis (233 I-45 North) | F91: 77304 | G91: Taboada, Rutila (618 Mill Ave) | H91: 77301 | I91: home | J91: 1 | K91: 14:30:00 | L91: 14:35:00 | M91: 00:05:00 | O91: 0.00
A92: Delivered | B92: Arujo Sharon | C92: 2017-06-08T15:35:00 | D92: 2017-06-08T15:43:00 | E92: 600 Riverpoint Dr. | F92: 77304 | G92: Arujo Sharon (512 Jewel St ) | H92: 77301 | I92: home | J92: 3 | K92: 16:00:00 | L92: 16:15:00 | M92: 00:15:00 | O92: 0.00
A93: Delivered | B93: Cremeans, Stacy | C93: 2017-06-08T17:00:00 | D93: 2017-06-08T17:06:00 | E93: Lowes (1920 Westview Rd | F93: 77304 | G93: Cremeans, Stacy, 901 Wilson Rd. Apt 1013 | H93: 77301 | I93: home | J93: 1 | K93: 17:00:00 | L93: 17:05:00 | M93: 00:05:00 | N93: =L93-K84 -> 09:35:00 | O93: 9.58
A94: Delivered | B94: Cremeans, Stacy | C94: 2017-06-09T07:19:00 | D94: 2017-06-09T07:26:00 | E94: Cremeans, Stacy, 901 Wilson Rd. Apt 1013 | F94: 77301 | G94: Lowes (1920 Westview Rd | H94: 77304 | I94: Work | J94: 1 | K94: 07:30:00 | L94: 07:35:00 | M94: 00:05:00
A95: Delivered | B95: Hopcus, Lilly | C95: 2017-06-09T07:52:00 | D95: 2017-06-09T07:58:00 | E95: Hopcus, Lilly 200 Camelot #300 | F95: 77304 | G95: DaVitas Dialysis (233 I-45 North) | H95: 77304 | I95: Dialysis | J95: 1 | K95: 08:00:00 | L95: 08:05:00 | M95: 00:05:00 | O95: =N95*24 -> 0.00
A96: Delivered | B96: Wallace, Charles | C96: 2017-06-09T08:08:00 | D96: 2017-06-09T08:13:00 | E96: Wallace, Charles (2213 N Frazier #1301) | F96: 77301 | G96: Kroger North Loop 336 (2222 I-45 North) | H96: 77304 | I96: Work | J96: 1 | K96: 08:00:00 | L96: 08:05:00 | M96: 00:05:00 | O96: 0.00
A97: Delivered | B97: Jacobo, Manuel | C97: 2017-06-09T09:43:00 | D97: 2017-06-09T09:55:00 | E97: DaVitas Dialysis (233 I-45 North) | F97: 77304 | G97: Jacobo, Manuel 110 Eloies | H97: 77301 | I97: home | J97: 2 | K97: 10:00:00 | L97: 10:10:00 | M97: 00:10:00 | O97: 0.00
A98: Delivered | B98: Cornelius, Sylvia | C98: 2017-06-09T10:05:00 | D98: 2017-06-09T10:32:00 | E98: Cornelius, Sylvia (1300 Silverdale Dr. Apt. 2004) | F98: 77301 | G98: Walmart (1407 N Loop 336) | H98: 77301 | I98: Shopping | J98: 8 | K98: 10:00:00 | L98: =K98+J98/24/12 -> 10:40:00 | M98: =L98-K98 -> 00:40:00 | O98: 0.00
A99: Delivered | B99: Schiller, Beverly | C99: 2017-06-09T10:08:00 | D99: 2017-06-09T10:19:00 | E99: Schiller, Beverly (1300 Silverdale Dr. #504) | F99: 77301 | G99: Kroger (220 S. Loop 336 West) | H99: 77304 | I99: Shopping | J99: 4 | K99: 10:00:00 | L99: 10:20:00 | M99: 00:20:00 | O99: 0.00
A100: Delivered | B100: Hopcus, Lilly | C100: 2017-06-09T12:11:00 | D100: 2017-06-09T12:22:00 | E100: DaVitas Dialysis (233 I-45 North) | F100: 77304 | G100: Hopcus, Lilly 200 Camelot #300 | H100: 77304 | I100: home | J100: 2 | K100: 12:30:00 | L100: 12:40:00 | M100: 00:10:00 | O100: 0.00
A101: Delivered | B101: Cornelius, Sylvia | C101: 2017-06-09T12:31:00 | D101: 2017-06-09T13:27:00 | E101: Walmart (1407 N Loop 336) | F101: 77301 | G101: Cornelius, Sylvia (1300 Silverdale Dr. Apt. 2004) | H101: 77301 | I101: home | J101: 8 | K101: 12:00:00 | L101: 12:40:00 | M101: 00:40:00 | O101: 0.00
A102: Delivered | B102: Manni, Willie | C102: 2017-06-09T12:50:00 | D102: 2017-06-09T13:08:00 | E102: Manni, Willie ( 404 Ave K ) | F102: 77301 | G102: River Park Dialysis 2010 s Loop | H102: 77301 | I102: Dialysis | J102: 3 | K102: 12:45:00 | L102: 13:00:00 | M102: 00:15:00
A103: Delivered | B103: Hill, Lillie | C103: 2017-06-09T13:00:00 | D103: 2017-06-09T13:12:00 | E103: Lillie Hill (500 Hickerson #1004) | F103: 77301 | G103: River Park Dialysis 2010 s Loop | H103: 77301 | I103: Dialysis | J103: 3 | K103: 12:45:00 | L103: 13:00:00 | M103: 00:15:00 | O103: =N103*24 -> 0.00
A104: Delivered | B104: Phillips, Sandra | C104: 2017-06-09T13:28:00 | D104: 2017-06-09T13:38:00 | E104: Phillips, Sandra 2205 N Frazier #43 | F104: 77301 | G104: Goodwill Stores (1102 W. Dallas) | H104: 77301 | I104: Work | J104: 2 | K104: 13:15:00 | L104: 13:25:00 | M104: 00:10:00 | O104: =N104*24 -> 0.00
A105: Delivered | B105: Schiller, Beverly | C105: 2017-06-09T13:37:00 | D105: 2017-06-09T13:51:00 | E105: Kroger (220 S. Loop 336 West) | F105: 77304 | G105: Schiller, Beverly (1300 Silverdale Dr. #504) | H105: 77301 | I105: home | J105: 4 | K105: 12:00:00 | L105: 12:20:00 | M105: 00:20:00 | O105: =N105*24 -> 0.00
A106: Delivered | B106: Wallace, Charles | C106: 2017-06-09T15:30:00 | D106: 2017-06-09T15:36:00 | E106: Kroger North Loop 336 (2222 I-45 North) | F106: 77304 | G106: Wallace, Charles (2213 N Frazier #1301) | H106: 77301 | I106: home | J106: 1 | K106: 15:30:00 | L106: 15:35:00 | M106: 00:05:00 | O106: =N106*24 -> 0.00
A107: Delivered | B107: Cremeans, Stacy | C107: 2017-06-09T16:04:00 | D107: 2017-06-09T16:09:00 | E107: Lowes (1920 Westview Rd | F107: 77304 | G107: Cremeans, Stacy, 901 Wilson Rd. Apt 1013 | H107: 77301 | I107: home | J107: 1 | K107: 16:00:00 | L107: 16:05:00 | M107: 00:05:00 | O107: =N107*24 -> 0.00
A108: Delivered | B108: Phillips, Sandra | C108: 2017-06-09T17:39:00 | D108: 2017-06-09T17:48:00 | E108: Goodwill Stores (1102 W. Dallas) | F108: 77301 | G108: Walmart (1407 N Loop 336) | H108: 77301 | I108: Shopping | J108: 2 | K108: 17:30:00 | L108: 17:40:00 | M108: 00:10:00
A109: Delivered | B109: Hill, Lillie | C109: 2017-06-09T17:58:00 | D109: 2017-06-09T18:21:00 | E109: River Park Dialysis 2010 s Loop | F109: 77301 | G109: Lillie Hill (500 Hickerson #1004) | H109: 77301 | I109: home | J109: 2 | K109: 17:45:00 | L109: 17:55:00 | M109: 00:10:00
A110: Delivered | B110: Manni, Willie | C110: 2017-06-09T17:58:00 | D110: 2017-06-09T18:13:00 | E110: River Park Dialysis 2010 s Loop | F110: 77301 | G110: Manni, Willie ( 404 Ave K ) | H110: 77301 | I110: home | J110: 4 | K110: 18:00:00 | L110: 18:20:00 | M110: 00:20:00
A111: Delivered | B111: Phillips, Sandra | C111: 2017-06-09T18:44:00 | D111: 2017-06-09T18:54:00 | E111: Walmart (1407 N Loop 336) | F111: 77301 | G111: Phillips, Sandra 2205 N Frazier #43 | H111: 77301 | I111: home | J111: 1 | K111: 18:30:00 | L111: 18:35:00 | M111: 00:05:00 | N111: =L111-K94 -> 11:05:00 | O111: =N111*24 -> 11.08
A112: Delivered | B112: Hopcus, Lilly | C112: 2017-06-12T07:40:00 | D112: 2017-06-12T07:47:00 | E112: Hopcus, Lilly 200 Camelot #300 | F112: 77304 | G112: DaVitas Dialysis (233 I-45 North) | H112: 77304 | I112: Dialysis | J112: 1 | K112: 08:00:00 | L112: 08:05:00 | M112: 00:05:00 | O112: 0.00
A113: Delivered | B113: Cremeans, Stacy | C113: 2017-06-12T08:04:00 | D113: 2017-06-12T08:10:00 | E113: Cremeans, Stacy, 901 Wilson Rd. Apt 1013 | F113: 77301 | G113: Lowes (1920 Westview Rd | H113: 77304 | I113: Work | J113: 1 | K113: 08:00:00 | L113: 08:05:00 | M113: 00:05:00 | O113: 0.00
A114: Delivered | B114: Jacobo, Manuel | C114: 2017-06-12T09:49:00 | D114: 2017-06-12T10:52:00 | E114: DaVitas Dialysis (233 I-45 North) | F114: 77304 | G114: Jacobo, Manuel 110 Eloies | H114: 77301 | I114: home | J114: 2 | K114: 10:00:00 | L114: 10:10:00 | M114: 00:10:00 | O114: 0.00
A115: Delivered | B115: Hopcus, Lilly | C115: 2017-06-12T12:25:00 | D115: 2017-06-12T12:33:00 | E115: DaVitas Dialysis (233 I-45 North) | F115: 77304 | G115: Hopcus, Lilly 200 Camelot #300 | H115: 77304 | I115: home | J115: 2 | K115: 12:30:00 | L115: 12:40:00 | M115: 00:10:00 | O115: 0.00
A116: Delivered | B116: Manni, Willie | C116: 2017-06-12T12:45:00 | D116: 2017-06-12T12:59:00 | E116: Manni, Willie ( 404 Ave K ) | F116: 77301 | G116: River Park Dialysis 2010 s Loop | H116: 77301 | I116: Dialysis | J116: 3 | K116: 12:45:00 | L116: 13:00:00 | M116: 00:15:00 | O116: 0.00
A117: Delivered | B117: Hill, Lillie | C117: 2017-06-12T13:01:00 | D117: 2017-06-12T13:15:00 | E117: Lillie Hill (500 Hickerson #1004) | F117: 77301 | G117: River Park Dialysis 2010 s Loop | H117: 77301 | I117: Dialysis | J117: 3 | K117: 12:45:00 | L117: 13:00:00 | M117: 00:15:00
A118: Delivered | B118: Cremeans, Stacy | C118: 2017-06-12T17:08:00 | D118: 2017-06-12T17:13:00 | E118: Lowes (1920 Westview Rd | F118: 77304 | G118: Cremeans, Stacy, 901 Wilson Rd. Apt 1013 | H118: 77301 | I118: home | J118: 1 | K118: 17:00:00 | L118: 17:05:00 | M118: 00:05:00 | O118: =N118*24 -> 0.00
A119: Delivered | B119: Manni, Willie | C119: 2017-06-12T17:39:00 | D119: 2017-06-12T17:55:00 | E119: River Park Dialysis 2010 s Loop | F119: 77301 | G119: Manni, Willie ( 404 Ave K ) | H119: 77301 | I119: home | J119: 4 | K119: 18:00:00 | L119: 18:20:00 | M119: 00:20:00
A120: Delivered | B120: Hill, Lillie | C120: 2017-06-12T18:05:00 | D120: 2017-06-12T18:15:00 | E120: River Park Dialysis 2010 s Loop | F120: 77301 | G120: Lillie Hill (500 Hickerson #1004) | H120: 77301 | I120: home | J120: 2 | K120: 17:45:00 | L120: 17:55:00 | M120: 00:10:00 | N120: =L120-K112 -> 09:55:00 | O120: =N120*24 -> 9.92
A121: Delivered | B121: Cremeans, Stacy | C121: 2017-06-13T08:00:00 | D121: 2017-06-13T08:05:00 | E121: Cremeans, Stacy, 901 Wilson Rd. Apt 1013 | F121: 77301 | G121: Lowes (1920 Westview Rd | H121: 77304 | I121: Work | J121: 1 | K121: 08:00:00 | L121: 08:05:00 | M121: 00:05:00 | O121: =N121*24 -> 0.00
A122: Delivered | B122: Adams, Michael Sidney | C122: 2017-06-13T08:13:00 | D122: 2017-06-13T08:21:00 | E122: Adams, Michael Sidney (101 S Woodsway West) | F122: 77301 | G122: DaVitas Dialysis (233 I-45 North) | H122: 77304 | I122: Dialysis | J122: 2 | K122: 08:30:00 | L122: 08:40:00 | M122: 00:10:00 | O122: =N122*24 -> 0.00
A123: Delivered | B123: Ware, Willie Jean | C123: 2017-06-13T09:46:00 | D123: 2017-06-13T09:55:00 | E123: Willie Jean Ware (507 Urquhart St) | F123: 77301 | G123: DaVitas Dialysis (233 I-45 North) | H123: 77304 | I123: Dialysis | J123: 1 | K123: 09:45:00 | L123: 09:50:00 | M123: 00:05:00 | O123: =N123*24 -> 0.00
A124: Delivered | B124: Taboada, Rutila | C124: 2017-06-13T10:01:00 | D124: 2017-06-13T10:08:00 | E124: Taboada, Rutila (618 Mill Ave) | F124: 77301 | G124: DaVitas Dialysis (233 I-45 North) | H124: 77304 | I124: Dialysis | J124: 1 | K124: 10:00:00 | L124: 10:05:00 | M124: 00:05:00 | O124: =N124*24 -> 0.00
A125: Delivered | B125: Adams, Michael Sidney | C125: 2017-06-13T13:28:00 | D125: 2017-06-13T13:37:00 | E125: DaVitas Dialysis (233 I-45 North) | F125: 77304 | G125: Adams, Michael Sidney (101 S Woodsway West) | H125: 77301 | I125: home | J125: 2 | K125: 12:45:00 | L125: 12:55:00 | M125: 00:10:00
A126: Delivered | B126: Ware, Willie Jean | C126: 2017-06-13T14:21:00 | D126: 2017-06-13T14:30:00 | E126: DaVitas Dialysis (233 I-45 North) | F126: 77304 | G126: Willie Jean Ware (507 Urquhart St) | H126: 77301 | I126: home | J126: 1 | K126: 14:10:00 | L126: 14:15:00 | M126: 00:05:00
A127: Delivered | B127: Taboada, Rutila | C127: 2017-06-13T14:42:00 | D127: 2017-06-13T14:49:00 | E127: DaVitas Dialysis (233 I-45 North) | F127: 77304 | G127: Taboada, Rutila (618 Mill Ave) | H127: 77301 | I127: home | J127: 1 | K127: 14:30:00 | L127: 14:35:00 | M127: 00:05:00
A128: Delivered | B128: Cremeans, Stacy | C128: 2017-06-13T17:03:00 | D128: 2017-06-13T17:11:00 | E128: Lowes (1920 Westview Rd | F128: 77304 | G128: Cremeans, Stacy, 901 Wilson Rd. Apt 1013 | H128: 77301 | I128: home | J128: 1 | K128: 17:00:00 | L128: 17:05:00 | M128: 00:05:00 | N128: =L128-K121 -> 09:05:00 | O128: =N128*24 -> 9.08
A129: Delivered | B129: Hopcus, Lilly | C129: 2017-06-14T07:47:00 | D129: 2017-06-14T07:53:00 | E129: Hopcus, Lilly 200 Camelot #300 | F129: 77304 | G129: DaVitas Dialysis (233 I-45 North) | H129: 77304 | I129: Dialysis | J129: 1 | K129: 08:00:00 | L129: 08:05:00 | M129: 00:05:00 | O129: =N129*24 -> 0.00
A130: Delivered | B130: Cremeans, Stacy | C130: 2017-06-14T08:02:00 | D130: 2017-06-14T08:08:00 | E130: Cremeans, Stacy, 901 Wilson Rd. Apt 1013 | F130: 77301 | G130: Lowes (1920 Westview Rd | H130: 77304 | I130: Work | J130: 1 | K130: 08:00:00 | L130: =K130+J130/24/12 -> 08:05:00 | M130: =L130-K130 -> 00:05:00
A131: Delivered | B131: Jacobo, Manuel | C131: 2017-06-14T09:44:00 | D131: 2017-06-14T09:57:00 | E131: DaVitas Dialysis (233 I-45 North) | F131: 77304 | G131: Jacobo, Manuel 110 Eloies | H131: 77301 | I131: home | J131: 2 | K131: 10:00:00 | L131: 10:10:00 | M131: 00:10:00 | O131: =N131*24 -> 0.00
A132: Delivered | B132: Hopcus, Lilly | C132: 2017-06-14T12:42:00 | D132: 2017-06-14T12:51:00 | E132: DaVitas Dialysis (233 I-45 North) | F132: 77304 | G132: Hopcus, Lilly 200 Camelot #300 | H132: 77304 | I132: home | J132: 2 | K132: 12:30:00 | L132: 12:40:00 | M132: 00:10:00
A133: Delivered | B133: Manni, Willie | C133: 2017-06-14T13:05:00 | D133: 2017-06-14T13:18:00 | E133: Manni, Willie ( 404 Ave K ) | F133: 77301 | G133: River Park Dialysis 2010 s Loop | H133: 77301 | I133: Dialysis | J133: 3 | K133: 12:45:00 | L133: 13:00:00 | M133: 00:15:00
A134: Delivered | B134: Phillips, Sandra | C134: 2017-06-14T13:18:00 | D134: 2017-06-14T13:36:00 | E134: Phillips, Sandra 2205 N Frazier #43 | F134: 77301 | G134: Goodwill Stores (1102 W. Dallas) | H134: 77301 | I134: Work | J134: 2 | K134: 13:15:00 | L134: 13:25:00 | M134: 00:10:00
A135: Delivered | B135: Cremeans, Stacy | C135: 2017-06-14T17:12:00 | D135: 2017-06-14T17:56:00 | E135: Lowes (1920 Westview Rd | F135: 77304 | G135: Cremeans, Stacy, 901 Wilson Rd. Apt 1013 | H135: 77301 | I135: home | J135: 1 | K135: 17:00:00 | L135: 17:05:00 | M135: 00:05:00 | O135: =N135*24 -> 0.00
A136: Delivered | B136: Phillips, Sandra | C136: 2017-06-14T17:39:00 | D136: 6/14/20017 17:56 | E136: Goodwill Stores (1102 W. Dallas) | F136: 77301 | G136: Phillips, Sandra 2205 N Frazier #43 | H136: 77301 | I136: home | J136: 2 | K136: 17:30:00 | L136: 17:40:00 | M136: 00:10:00 | O136: 0.00
A137: Delivered | B137: Manni, Willie | C137: 2017-06-14T18:08:00 | D137: 2017-06-14T18:24:00 | E137: River Park Dialysis 2010 s Loop | F137: 77301 | G137: Manni, Willie ( 404 Ave K ) | H137: 77301 | I137: home | J137: 4 | K137: 18:00:00 | L137: 18:20:00 | M137: 00:20:00 | N137: =L137-K129 -> 10:20:00 | O137: 10.33
A138: Delivered | B138: Wallace, Charles | C138: 2017-06-15T07:47:00 | D138: 2017-06-15T07:54:00 | E138: Wallace, Charles (2213 N Frazier #1301) | F138: 77301 | G138: Kroger North Loop 336 (2222 I-45 North) | H138: 77304 | I138: Work | J138: 1 | K138: 08:00:00 | L138: 08:05:00 | M138: 00:05:00 | O138: 0.00
A139: Delivered | B139: Adams, Michael Sidney | C139: 2017-06-15T08:28:00 | D139: 2017-06-15T08:35:00 | E139: Adams, Michael Sidney (101 S Woodsway West) | F139: 77301 | G139: DaVitas Dialysis (233 I-45 North) | H139: 77304 | I139: Dialysis | J139: 2 | K139: 08:30:00 | L139: 08:40:00 | M139: 00:10:00 | O139: 0.00
A140: Delivered | B140: Taylor Jr. Milton | C140: 2017-06-15T08:59:00 | D140: 2017-06-15T09:05:00 | E140: Taylor Jr, Milton 500 Hickerson #903 | F140: 77301 | G140: central Branch library | H140: 77301 | I140: Personal | J140: 2 | K140: 09:00:00 | L140: 09:10:00 | M140: 00:10:00 | O140: 0.00
A141: Delivered | B141: Taylor Jr. Milton | C141: 2017-06-15T09:08:00 | D141: 2017-06-15T09:17:00 | E141: central Branch library | F141: 77301 | G141: Sams Club (2000 Westview Blvd.) | H141: 77304 | I141: Shopping | J141: 2 | K141: 10:00:00 | L141: 10:10:00 | M141: 00:10:00 | O141: 0.00
A142: Delivered | B142: Ware, Willie Jean | C142: 2017-06-15T09:31:00 | D142: 2017-06-15T09:36:00 | E142: Willie Jean Ware (507 Urquhart St) | F142: 77301 | G142: DaVitas Dialysis (233 I-45 North) | H142: 77304 | I142: Dialysis | J142: 1 | K142: 09:45:00 | L142: 09:50:00 | M142: 00:05:00
A143: Delivered | B143: Taboada, Rutila | C143: 2017-06-15T09:49:00 | D143: 2017-06-15T09:58:00 | E143: Taboada, Rutila (618 Mill Ave) | F143: 77301 | G143: DaVitas Dialysis (233 I-45 North) | H143: 77304 | I143: Dialysis | J143: 1 | K143: 10:00:00 | L143: 10:05:00 | M143: 00:05:00
A144: Delivered | B144: Cornelius, Sylvia | C144: 2017-06-15T12:08:00 | D144: 2017-06-15T12:34:00 | E144: Cornelius, Sylvia (1300 Silverdale Dr. Apt. 2004) | F144: 77301 | G144: 100 Medical Center Blvd | H144: 77301 | I144: Medical | J144: 7 | K144: 12:30:00 | L144: 13:05:00 | M144: 00:35:00
A145: Delivered | B145: Adams, Michael Sidney | C145: 2017-06-15T12:41:00 | D145: 2017-06-15T13:27:00 | E145: DaVitas Dialysis (233+E145:K145 I-45 North) | F145: 77304 | G145: Adams, Michael Sidney (101 S Woodsway West) | H145: 77301 | I145: home | J145: 2 | K145: 12:45:00 | L145: 12:55:00 | M145: 00:10:00
A146: Delivered | B146: Young, Minnie Marie | C146: 2017-06-15T13:32:00 | D146: 2017-06-15T13:41:00 | E146: Young, Minnie Marie (2455N frazier Apt 934 | F146: 77301 | G146: 500 medical Center | H146: 77304 | I146: Medical | J146: 5 | K146: 13:15:00 | L146: 13:40:00 | M146: 00:25:00
A147: Delivered | B147: Phillips, Sandra | C147: 2017-06-15T13:40:00 | D147: 2017-06-15T13:56:00 | E147: Phillips, Sandra 2205 N Frazier #43 | F147: 77301 | G147: 100 Medical Center Blvd | H147: 77301 | I147: Medical | J147: 16 | K147: 13:30:00 | L147: 14:50:00 | M147: 01:20:00
A148: Delivered | B148: Taylor Jr. Milton | C148: 2017-06-15T13:55:00 | D148: 2017-06-15T14:04:00 | E148: Walmart (1407 N Loop 336) | F148: 77304 | G148: CVS Pharmacy (910 W Davis) | H148: 77301 | I148: Shopping | J148: 2 | K148: 12:00:00 | L148: 12:10:00 | M148: 00:10:00 | O148: =N148*24 -> 0.00
A149: Delivered | B149: Ware, Willie Jean | C149: 2017-06-15T14:07:00 | D149: 2017-06-15T14:13:00 | E149: DaVitas Dialysis (233 I-45 North) | F149: 77304 | G149: Willie Jean Ware (507 Urquhart St) | H149: 77301 | I149: home | J149: 1 | K149: 14:10:00 | L149: 14:15:00 | M149: 00:05:00
A150: Delivered | B150: Cornelius, Sylvia | C150: 2017-06-15T14:23:00 | D150: 2017-06-15T14:30:00 | E150: 100 Medical Center Blvd | F150: 77301 | G150: Cornelius, Sylvia (1300 Silverdale Dr. Apt. 2004) | H150: 77301 | I150: home | J150: 5 | K150: 15:00:00 | L150: 15:25:00 | M150: 00:25:00
A151: Delivered | B151: Phillips, Sandra | C151: 2017-06-15T14:23:00 | D151: 2017-06-15T14:56:00 | E151: 100 Medical Center Blvd | F151: 77301 | G151: Phillips, Sandra 2205 N Frazier #43 | H151: 77301 | I151: home | J151: 9 | K151: 15:00:00 | L151: 15:45:00 | M151: 00:45:00
A152: Delivered | B152: Taboada, Rutila | C152: 2017-06-15T15:32:00 | D152: 2017-06-15T15:38:00 | E152: DaVitas Dialysis (233 I-45 North) | F152: 77304 | G152: Taboada, Rutila (618 Mill Ave) | H152: 77301 | I152: home | J152: 1 | K152: 14:30:00 | L152: 14:35:00 | M152: 00:05:00
A153: Delivered | B153: Young, Minnie Marie | C153: 2017-06-15T15:38:00 | D153: 2017-06-15T16:01:00 | E153: 500 medical Center | F153: 77304 | G153: Young, Minnie Marie (2455N frazier Apt 934 | H153: 77301 | I153: home | J153: 3 | K153: 14:30:00 | L153: 14:45:00 | M153: 00:15:00
A154: Delivered | B154: Taylor Jr. Milton | C154: 2017-06-15T15:47:00 | D154: 2017-06-15T16:14:00 | E154: Burger King (907 w Davis) | F154: 77301 | G154: Taylor Jr, Milton 500 Hickerson #903 | H154: 77301 | I154: home | J154: 6 | K154: 15:30:00 | L154: 16:00:00 | M154: 00:30:00
A155: Delivered | B155: Cremeans, Stacy | C155: 2017-06-15T17:01:00 | D155: 2017-06-15T17:06:00 | E155: Lowes (1920 Westview Rd | F155: 77304 | G155: Cremeans, Stacy, 901 Wilson Rd. Apt 1013 | H155: 77301 | I155: home | J155: 1 | K155: 17:00:00 | L155: 17:05:00 | M155: 00:05:00 | N155: =L155-K138 -> 09:05:00 | O155: =N155*24 -> 9.08
A156: Delivered | B156: Hopcus, Lilly | C156: 2017-06-16T07:44:00 | D156: 2017-06-16T07:50:00 | E156: Hopcus, Lilly 200 Camelot #300 | F156: 77304 | G156: DaVitas Dialysis (233 I-45 North) | H156: 77304 | I156: Dialysis | J156: 1 | K156: 08:00:00 | L156: 08:05:00 | M156: 00:05:00
A157: Delivered | B157: Cremeans, Stacy | C157: 2017-06-16T08:03:00 | D157: 2017-06-16T08:08:00 | E157: Cremeans, Stacy, 901 Wilson Rd. Apt 1013 | F157: 77301 | G157: Lowes (1920 Westview Rd | H157: 77304 | I157: Work | J157: 1 | K157: 08:00:00 | L157: 08:05:00 | M157: 00:05:00
A158: Delivered | B158: Sumner, Susan | C158: 2017-06-16T08:47:00 | D158: 2017-06-16T08:54:00 | E158: Sumner, Susan 1000 S. 1St st | F158: 77301 | G158: Kroger North Loop 336 (2222 I-45 North) | H158: 77304 | I158: Shopping | J158: 2 | K158: 09:00:00 | L158: 09:10:00 | M158: 00:10:00
A159: Delivered | B159: Sumner, Susan | C159: 2017-06-16T09:11:00 | D159: 2017-06-16T09:19:00 | E159: Kroger North Loop 336 (2222 I-45 North) | F159: 77304 | G159: Sumner, Susan 1000 S. 1St st | H159: 77301 | I159: home | J159: 2 | K159: 09:30:00 | L159: 09:40:00 | M159: 00:10:00
A160: Delivered | B160: Jacobo, Manuel | C160: 2017-06-16T09:46:00 | D160: 2017-06-16T09:59:00 | E160: DaVitas Dialysis (233 I-45 North) | F160: 77304 | G160: Jacobo, Manuel 110 Eloies | H160: 77301 | I160: home | J160: 2 | K160: 10:00:00 | L160: 10:10:00 | M160: 00:10:00
A161: Delivered | B161: Wallace, Charles | C161: 2017-06-16T10:06:00 | D161: 2017-06-16T10:11:00 | E161: Wallace, Charles (2213 N Frazier #1301) | F161: 77301 | G161: Kroger North Loop 336 (2222 I-45 North) | H161: 77304 | I161: Work | J161: 1 | K161: 10:00:00 | L161: 10:05:00 | M161: 00:05:00
A162: Delivered | B162: Smith, Alice J. | C162: 2017-06-16T10:42:00 | D162: 2017-06-16T10:57:00 | E162: Smith, Alice (617 Ave. I) | F162: 77301 | G162: Sams Club (2000 Westview Blvd.) | H162: 77304 | I162: Shopping | J162: 3 | K162: 11:15:00 | L162: =K162+J162/24/12 -> 11:30:00 | M162: =L162-K162 -> 00:15:00
A163: Delivered | B163: Smith, Alice J. | C163: 2017-06-16T11:50:00 | D163: 2017-06-16T12:07:00 | E163: Sams Club (2000 Westview Blvd.) | F163: 77304 | G163: Smith, Alice (617 Ave. I) | H163: 77301 | I163: home | J163: 4 | K163: 12:15:00 | L163: 12:35:00 | M163: 00:20:00
A164: Delivered | B164: Hopcus, Lilly | C164: 2017-06-16T12:34:00 | D164: 2017-06-16T12:44:00 | E164: DaVitas Dialysis (233 I-45 North) | F164: 77304 | G164: Hopcus, Lilly 200 Camelot #300 | H164: 77304 | I164: home | J164: 2 | K164: 12:30:00 | L164: 12:40:00 | M164: 00:10:00
A165: Delivered | B165: Manni, Willie | C165: 2017-06-16T12:44:00 | D165: 2017-06-16T12:58:00 | E165: Manni, Willie ( 404 Ave K ) | F165: 77301 | G165: River Park Dialysis 2010 s Loop | H165: 77301 | I165: Dialysis | J165: 3 | K165: 12:45:00 | L165: 13:00:00 | M165: 00:15:00
A166: Delivered | B166: Hill, Lillie | C166: 2017-06-16T12:56:00 | D166: 2017-06-16T13:06:00 | E166: Lillie Hill (500 Hickerson #1004) | F166: 77301 | G166: River Park Dialysis 2010 s Loop | H166: 77301 | I166: Dialysis | J166: 3 | K166: 12:45:00 | L166: 13:00:00 | M166: 00:15:00
A167: Delivered | B167: Phillips, Sandra | C167: 2017-06-16T13:14:00 | D167: 2017-06-16T13:30:00 | E167: Phillips, Sandra 2205 N Frazier #43 | F167: 77301 | G167: Goodwill Stores (1102 W. Dallas) | H167: 77301 | I167: Work | J167: 2 | K167: 13:15:00 | L167: 13:25:00 | M167: 00:10:00
A168: Delivered | B168: Cremeans, Stacy | C168: 2017-06-16T16:07:00 | D168: 2017-06-16T16:12:00 | E168: Lowes (1920 Westview Rd | F168: 77304 | G168: Cremeans, Stacy, 901 Wilson Rd. Apt 1013 | H168: 77301 | I168: home | J168: 1 | K168: 16:00:00 | L168: 16:05:00 | M168: 00:05:00
A169: Delivered | B169: Phillips, Sandra | C169: 2017-06-16T17:38:00 | D169: 2017-06-16T17:53:00 | E169: Goodwill Stores (1102 W. Dallas) | F169: 77301 | G169: Phillips, Sandra 2205 N Frazier #43 | H169: 77301 | I169: home | J169: 2 | K169: 17:30:00 | L169: 17:40:00 | M169: 00:10:00
A170: Delivered | B170: Hill, Lillie | C170: 2017-06-16T18:06:00 | D170: 2017-06-16T18:16:00 | E170: River Park Dialysis 2010 s Loop | F170: 77301 | G170: Lillie Hill (500 Hickerson #1004) | H170: 77301 | I170: home | J170: 2 | K170: 17:45:00 | L170: 17:55:00 | M170: 00:10:00
A171: Delivered | B171: Manni, Willie | C171: 2017-06-16T18:06:00 | D171: 2017-06-16T18:27:00 | E171: River Park Dialysis 2010 s Loop | F171: 77301 | G171: Manni, Willie ( 404 Ave K ) | H171: 77301 | I171: home | J171: 4 | K171: 18:00:00 | L171: 18:20:00 | M171: 00:20:00 | N171: =L171-K156 -> 10:20:00 | O171: =N171*24 -> 10.33
A172: Delivered | B172: Hopcus, Lilly | C172: 2017-06-19T07:40:00 | D172: 2017-06-19T07:48:00 | E172: Hopcus, Lilly 200 Camelot #300 | F172: 77304 | G172: DaVitas Dialysis (233 I-45 North) | H172: 77304 | I172: Dialysis | J172: 1 | K172: 08:00:00 | L172: 08:05:00 | M172: 00:05:00
A173: Delivered | B173: Cremeans, Stacy | C173: 2017-06-19T08:03:00 | D173: 2017-06-19T08:09:00 | E173: Cremeans, Stacy, 901 Wilson Rd. Apt 1013 | F173: 77301 | G173: Lowes (1920 Westview Rd | H173: 77304 | I173: Work | J173: 1 | K173: 08:00:00 | L173: 08:05:00 | M173: 00:05:00
A174: Delivered | B174: Jacobo, Manuel | C174: 2017-06-19T09:53:00 | D174: 2017-06-19T10:03:00 | E174: DaVitas Dialysis (233 I-45 North) | F174: 77304 | G174: Jacobo, Manuel 110 Eloies | H174: 77301 | I174: home | J174: 2 | K174: 10:00:00 | L174: 10:10:00 | M174: 00:10:00
A175: Delivered | B175: Schiller, Beverly | C175: 2017-06-19T10:14:00 | D175: 2017-06-19T10:25:00 | E175: Schiller, Beverly (1300 Silverdale Dr. #504) | F175: 77301 | G175: Walgreens (420 N Frazier st) | H175: 77304 | I175: Shopping | J175: 3 | K175: 10:00:00 | L175: 10:15:00 | M175: 00:15:00
A176: Delivered | B176: Hopcus, Lilly | C176: 2017-06-19T12:30:00 | D176: 2017-06-19T12:39:00 | E176: DaVitas Dialysis (233 I-45 North) | F176: 77304 | G176: Hopcus, Lilly 200 Camelot #300 | H176: 77304 | I176: home | J176: 2 | K176: 12:30:00 | L176: 12:40:00 | M176: 00:10:00
A177: Delivered | B177: Manni, Willie | C177: 2017-06-19T12:46:00 | D177: 2017-06-19T13:00:00 | E177: Manni, Willie ( 404 Ave K ) | F177: 77301 | G177: River Park Dialysis 2010 s Loop | H177: 77301 | I177: Dialysis | J177: 3 | K177: 12:45:00 | L177: 13:00:00 | M177: 00:15:00
A178: Delivered | B178: Hill, Lillie | C178: 2017-06-19T13:00:00 | D178: 2017-06-19T13:11:00 | E178: Lillie Hill (500 Hickerson #1004) | F178: 77301 | G178: River Park Dialysis 2010 s Loop | H178: 77301 | I178: Dialysis | J178: 3 | K178: 12:45:00 | L178: 13:00:00 | M178: 00:15:00
A179: Delivered | B179: Schiller, Beverly | C179: 2017-06-19T13:29:00 | D179: 2017-06-19T13:44:00 | E179: walgreens(420 N Frazier St) | F179: 77304 | G179: Schiller, Beverly (1300 Silverdale Dr. #504) | H179: 77301 | I179: home | J179: 4 | K179: 11:30:00 | L179: 11:50:00 | M179: 00:20:00
A180: Delivered | B180: Phillips, Sandra | C180: 2017-06-19T14:00:00 | D180: 2017-06-19T14:11:00 | E180: Phillips, Sandra 2205 N Frazier #43 | F180: 77301 | G180: Goodwill Stores (1102 W. Dallas) | H180: 77301 | I180: Work | J180: 2 | K180: 14:00:00 | L180: 14:10:00 | M180: 00:10:00
A181: Delivered | B181: Cremeans, Stacy | C181: 2017-06-19T17:02:00 | D181: 2017-06-19T17:08:00 | E181: Lowes (1920 Westview Rd | F181: 77304 | G181: Cremeans, Stacy, 901 Wilson Rd. Apt 1013 | H181: 77301 | I181: home | J181: 1 | K181: 17:00:00 | L181: 17:05:00 | M181: 00:05:00
A182: Delivered | B182: Phillips, Sandra | C182: 2017-06-19T17:37:00 | D182: 2017-06-19T17:50:00 | E182: Goodwill Stores (1102 W. Dallas) | F182: 77301 | G182: Phillips, Sandra 2205 N Frazier #43 | H182: 77301 | I182: home | J182: 2 | K182: 17:30:00 | L182: 17:40:00 | M182: 00:10:00
A183: Delivered | B183: Hill, Lillie | C183: 2017-06-19T18:03:00 | D183: 2017-06-19T18:11:00 | E183: River Park Dialysis 2010 s Loop | F183: 77301 | G183: Lillie Hill (500 Hickerson #1004) | H183: 77301 | I183: home | J183: 2 | K183: 17:45:00 | L183: 17:55:00 | M183: 00:10:00
A184: Delivered | B184: Manni, Willie | C184: 2017-06-19T18:03:00 | D184: 2017-06-19T18:22:00 | E184: River Park Dialysis 2010 s Loop | F184: 77301 | G184: Manni, Willie ( 404 Ave K ) | H184: 77301 | I184: home | J184: 4 | K184: 18:00:00 | L184: 18:20:00 | M184: 00:20:00 | N184: =L184-K172 -> 10:20:00 | O184: =N184*24 -> 10.33
A185: Delivered | B185: Cremeans, Stacy | C185: 2017-06-20T08:03:00 | D185: 2017-06-20T08:11:00 | E185: Cremeans, Stacy, 901 Wilson Rd. Apt 1013 | F185: 77301 | G185: Lowes (1920 Westview Rd | H185: 77304 | I185: Work | J185: 1 | K185: 08:00:00 | L185: 08:05:00 | M185: 00:05:00
A186: Delivered | B186: Adams, Michael Sidney | C186: 2017-06-20T08:20:00 | D186: 2017-06-20T08:28:00 | E186: Adams, Michael Sidney (101 S Woodsway West) | F186: 77301 | G186: DaVitas Dialysis (233 I-45 North) | H186: 77304 | I186: Dialysis | J186: 2 | K186: 08:30:00 | L186: 08:40:00 | M186: 00:10:00
A187: Delivered | B187: Taylor Jr. Milton | C187: 2017-06-20T09:02:00 | D187: 2017-06-20T09:14:00 | E187: Taylor Jr, Milton 500 Hickerson #903 | F187: 77301 | G187: 99 cent Store 1420 Loop 336 | H187: 77304 | I187: Shopping | J187: 4 | K187: 09:00:00 | L187: 09:20:00 | M187: 00:20:00
A188: Delivered | B188: Ware, Willie Jean | C188: 2017-06-20T09:35:00 | D188: 2017-06-20T09:42:00 | E188: Willie Jean Ware (507 Urquhart St) | F188: 77301 | G188: DaVitas Dialysis (233 I-45 North) | H188: 77304 | I188: Dialysis | J188: 1 | K188: 09:45:00 | L188: 09:50:00 | M188: 00:05:00
A189: Delivered | B189: Taboada, Rutila | C189: 2017-06-20T09:48:00 | D189: 2017-06-20T09:56:00 | E189: Taboada, Rutila (618 Mill Ave) | F189: 77301 | G189: DaVitas Dialysis (233 I-45 North) | H189: 77304 | I189: Dialysis | J189: 1 | K189: 10:00:00 | L189: =K217+J217/24/12 -> 09:50:00 | M189: =L189-K217 -> 00:05:00
A190: Delivered | B190: Brown, Betty | C190: 2017-06-20T10:07:00 | D190: 2017-06-20T10:17:00 | E190: Brown, Betty 1300 Silverdale Dr. Apt. 3001 | F190: 77301 | G190: Kroger (220 S. Loop 336 West) | H190: 77304 | I190: Shopping | J190: 3 | K190: 10:00:00 | L190: =K190+J190/24/12 -> 10:15:00 | M190: =L190-K190 -> 00:15:00
A191: Delivered | B191: Brown, Betty | C191: 2017-06-20T10:55:00 | D191: 2017-06-20T11:01:00 | E191: Kroger (220 S. Loop 336 West) | F191: 77304 | G191: Sprint Store (1130 W Dallas) | H191: 77301 | I191: Shopping | J191: 3 | K191: 11:30:00 | L191: 11:45:00 | M191: 00:15:00
A192: Delivered | B192: Brown, Betty | C192: 2017-06-20T11:10:00 | D192: 2017-06-20T11:23:00 | E192: Sprint Store (1130 W Dallas) | F192: 77301 | G192: Valero Pinecrest/Porter | H192: 77301 | I192: Shopping | J192: 5 | K192: 12:30:00 | L192: 12:55:00 | M192: 00:25:00
A193: Delivered | B193: Brown, Betty | C193: 2017-06-20T11:26:00 | D193: 2017-06-20T11:29:00 | E193: Valero Pinecrest/Porter | F193: 77301 | G193: Brown, Betty 1300 Silverdale Dr. Apt. 3001 | H193: 77301 | I193: home | J193: 1 | K193: 13:00:00 | L193: 13:05:00 | M193: 00:05:00
A194: Delivered | B194: Taylor Jr. Milton | C194: 2017-06-20T12:04:00 | D194: 2017-06-20T12:09:00 | E194: sonic Drive In (309 N Frazier ) | F194: 77301 | G194: Taylor Jr, Milton 500 Hickerson #903 | H194: 77301 | I194: home | J194: 2 | K194: 11:00:00 | L194: 11:10:00 | M194: 00:10:00
A195: Delivered | B195: Adams, Michael Sidney | C195: 2017-06-20T12:35:00 | D195: 2017-06-20T13:02:00 | E195: DaVitas Dialysis (233 I-45 North) | F195: 77304 | G195: Adams, Michael Sidney (101 S Woodsway West) | H195: 77301 | I195: home | J195: 2 | K195: 12:45:00 | L195: 12:55:00 | M195: 00:10:00
A196: Delivered | B196: Cornelius, Sylvia | C196: 2017-06-20T13:15:00 | D196: 2017-06-20T13:31:00 | E196: Cornelius, Sylvia (1300 Silverdale Dr. Apt. 2004) | F196: 77301 | G196: Chase Bank (1320 W. Davis ) | H196: 77301 | I196: Personal | J196: 4 | K196: 13:00:00 | L196: 13:20:00 | M196: 00:20:00
A197: Delivered | B197: Taylor Jr. Milton | C197: 2017-06-20T13:37:00 | D197: 2017-06-20T10:46:00 | E197: 99 cent Store 1420 Loop 336 | F197: 77304 | G197: Walgreens (420 N Frazier st) | H197: 77304 | I197: Shopping | J197: 2 | K197: 10:00:00 | L197: 10:10:00 | M197: 00:10:00
A198: Delivered | B198: Ware, Willie Jean | C198: 2017-06-20T14:06:00 | D198: 2017-06-20T14:13:00 | E198: DaVitas Dialysis (233 I-45 North) | F198: 77304 | G198: Willie Jean Ware (507 Urquhart St) | H198: 77301 | I198: home | J198: 1 | K198: 14:10:00 | L198: 14:15:00 | M198: 00:05:00
A199: Delivered | B199: Cornelius, Sylvia | C199: 2017-06-20T14:12:00 | D199: 2017-06-25T21:31:00 | E199: Kroger (220 S. Loop 336 West) | F199: 77304 | G199: Cornelius, Sylvia (1300 Silverdale Dr. Apt. 2004) | H199: 77301 | I199: home | J199: 4 | K199: 15:30:00 | L199: 15:50:00 | M199: 00:20:00
A200: Delivered | B200: Cornelius, Sylvia | C200: 2017-06-20T14:16:00 | D200: 2017-06-20T14:27:00 | E200: Chase Bank (1320 W. Davis ) | F200: 77301 | G200: Kroger (220 S. Loop 336 West) | H200: 77304 | I200: Shopping | J200: 3 | K200: 13:30:00 | L200: 13:45:00 | M200: 00:15:00
... 122 more rows

Sheet Maint. 1473
A1: Vehicle Maintenance | B1: Fixed Route | C1: Paratransit | D1: EOM Mileage | E1: 47,118
A2: Transit Vehicle Breakdowns | B2: 0 | C2: 0
A3: Unit Number | B3: 1473 | C3: 1473
A4: Odometer Reading | B4: N/A | C4: N/A
A5: Date Out of Service | B5: N/A | C5: N/A
A6: Date Return to Service | B6: N/A | C6: N/A
A7: Description of Problem | B7: seat back broken | C7: N/A
A8: Vehicle PM Scheduled | B8: ~36000 | C8: N/A
A9: Vehicle PM Performed On-Time | B9: N/A | C9: N/A

Sheet Maint. 1474
A1: Vehicle Maintenance | B1: Fixed Route | C1: Paratransit | D1: EOM Mileage | E1: 47,517
A2: Transit Vehicle Breakdowns | B2: 0 | C2: 0
A3: Unit Number | B3: 1474 | C3: 1474
A4: Odometer Reading | B4: N/A | C4: N/A
A5: Date Out of Service | B5: N/A | C5: N/A
A6: Date Return to Service | B6: N/A | C6: N/A
A7: Description of Problem | B7: N/A | C7: N/A
A8: Vehicle PM Scheduled | B8: 42,900 | C8: N/A
A9: Vehicle PM Performed On-Time | B9: N/A | C9: N/A

Sheet Maint. 1475
A1: Vehicle Maintenance | B1: Fixed Route | C1: Paratransit | D1: EOM Mileage | E1: 42,464
A2: Transit Vehicle Breakdowns | B2: 0 | C2: 0
A3: Unit Number | B3: 1475 | C3: 1475
A4: Odometer Reading | B4: 42,464 | C4: N/A
A5: Date Out of Service | B5: 2017-06-15 | C5: N/A
A6: Date Return to Service | B6: N/A | C6: N/A
A7: Description of Problem | B7: Fan belt Broke | C7: N/A
A8: Vehicle PM Scheduled | B8: ~36000 | C8: N/A
A9: Vehicle PM Performed On-Time | B9: N/A | C9: N/A

Sheet Maint. 1476
A1: Vehicle Maintenance | B1: Fixed Route | C1: Paratransit | D1: EOM Mileage | E1: 50,198
A2: Transit Vehicle Breakdowns | B2: 0 | C2: 0
A3: Unit Number | B3: 1476 | C3: 1476
A4: Odometer Reading | B4: N/A | C4: N/A
A5: Date Out of Service | B5: N/A | C5: N/A
A6: Date Return to Service | B6: N/A | C6: N/A
A7: Description of Problem | C7: N/A
A8: Vehicle PM Scheduled | B8: N/A | C8: N/A
A9: Vehicle PM Performed On-Time | B9: N/A | C9: N/A

Sheet Maint. 6389 (hidden)
A1: Vehicle Maintenance | B1: Fixed Route | C1: Paratransit
A2: Transit Vehicle Breakdowns
A3: Unit Number | B3: GSD 6389 | C3: GSD 6389
A4: Odometer Reading
A5: Date Out of Service
A6: Date Return to Service
A7: Description of Problem
A8: Vehicle PM Scheduled
A9: Vehicle PM Performed On-Time

Sheet Maint. 1603
A1: Vehicle Maintenance | B1: Fixed Route | C1: Paratransit | D1: EOM Mileage | E1: 9,295
A2: Transit Vehicle Breakdowns | B2: 0 | C2: 0
A3: Unit Number | B3: 1603 | C3: 1603
A4: Odometer Reading | B4: N/A | C4: 8,709
A5: Date Out of Service | B5: N/A | C5: 2017-06-14
A6: Date Return to Service | B6: N/A | C6: N/A
A7: Description of Problem | B7: N/A | C7: Preventative Maintenance Inspection
A8: Vehicle PM Scheduled | B8: N/A | C8: ~10000
A9: Vehicle PM Performed On-Time | B9: N/A | C9: N/A

Sheet Maint. 1604
A1: Vehicle Maintenance | B1: Fixed Route | C1: Paratransit | D1: EOM Mileage | E1: 17,598
A2: Transit Vehicle Breakdowns | B2: 0 | C2: 0
A3: Unit Number | B3: 1604 | C3: 1604
A4: Odometer Reading | B4: N/A | C4: 12,238
A5: Date Out of Service | B5: N/A | C5: 2017-06-14
A6: Date Return to Service | B6: N/A | C6: 2017-06-14
A7: Description of Problem | B7: N/A | C7: Preventative Maintenance Inspection
A8: Vehicle PM Scheduled | B8: 17,485 | C8: ~10000
A9: Vehicle PM Performed On-Time | B9: N/A | C9: N/A
